[Event "Titled Tuesday Blitz September 28 2021"]
[White "Di Nicolantonio, Lucas"]
[Black "Shkapenko, Pavel"]
[WhiteFideId "680460"]
[BlackFideId "4151933"]
[WhiteElo "2381"]
[BlackElo "2386"]
[Result "1/2-1/2"]
[Round "05"]
[TimeControl "180+1"]
[Date "2021.09.28"]
[WhiteClock "0:00:45"]
[BlackClock "0:00:35"]

1. g3 {[%clk 0:03:00]}  Nf6 {[%clk 0:02:57]} 2. Bg2 {[%clk 0:03:01]}  d5 {[%clk 0:02:56]} 3. f4 {[%clk 0:03:00]}  c6 {[%clk 0:02:56]} 4. Nf3 {[%clk 0:03:00]}  Bg4 {[%clk 0:02:55]} 5. Ne5 {[%clk 0:02:58]}  Bf5 {[%clk 0:02:52]} 6. d3 {[%clk 0:02:58]}  Nbd7 {[%clk 0:02:51]} 7. O-O {[%clk 0:02:58]}  e6 {[%clk 0:02:51]} 8. Nc3 {[%clk 0:02:55]}  Nxe5 {[%clk 0:02:50]} 9. fxe5 {[%clk 0:02:56]}  Nd7 {[%clk 0:02:51]} 10. d4 {[%clk 0:02:54]}  Bb4 {[%clk 0:02:43]} 11. e4 {[%clk 0:02:49]}  Bg6 {[%clk 0:02:43]} 12. exd5 {[%clk 0:02:47]}  cxd5 {[%clk 0:02:43]} 13. Ne2 {[%clk 0:02:15]}  O-O {[%clk 0:02:41]} 14. c3 {[%clk 0:02:16]}  Be7 {[%clk 0:02:41]} 15. Nf4 {[%clk 0:02:17]}  b5 {[%clk 0:02:35]} 16. Nxg6 {[%clk 0:02:01]}  hxg6 {[%clk 0:02:34]} 17. a4 {[%clk 0:01:55]}  b4 {[%clk 0:02:33]} 18. c4 {[%clk 0:01:46]}  dxc4 {[%clk 0:02:33]} 19. Bxa8 {[%clk 0:01:47]}  Qxa8 {[%clk 0:02:33]} 20. Qf3 {[%clk 0:01:48]}  Nb6 {[%clk 0:02:17]} 21. Bd2 {[%clk 0:01:42]}  Qxf3 {[%clk 0:01:41]} 22. Rxf3 {[%clk 0:01:43]}  Rd8 {[%clk 0:01:41]} 23. a5 {[%clk 0:01:41]}  Nd5 {[%clk 0:01:40]} 24. Rc1 {[%clk 0:01:41]}  Rc8 {[%clk 0:01:38]} 25. h4 {[%clk 0:01:37]}  f5 {[%clk 0:01:37]} 26. exf6 {[%clk 0:01:32]}  gxf6 {[%clk 0:01:37]} 27. Re1 {[%clk 0:01:29]}  Kf7 {[%clk 0:01:36]} 28. g4 {[%clk 0:01:30]}  c3 {[%clk 0:01:25]} 29. bxc3 {[%clk 0:01:29]}  bxc3 {[%clk 0:01:25]} 30. Bc1 {[%clk 0:01:28]}  Rc4 {[%clk 0:01:25]} 31. Re4 {[%clk 0:01:22]}  e5 {[%clk 0:01:06]} 32. Rxe5 {[%clk 0:01:10]}  Rxd4 {[%clk 0:01:06]} 33. Rxd5 {[%clk 0:01:06]}  Rxd5 {[%clk 0:01:06]} 34. Rxc3 {[%clk 0:01:04]}  Rxa5 {[%clk 0:01:04]} 35. Be3 {[%clk 0:01:03]}  Ra4 {[%clk 0:00:58]} 36. g5 {[%clk 0:00:56]}  fxg5 {[%clk 0:00:44]} 37. hxg5 {[%clk 0:00:52]}  Bxg5 {[%clk 0:00:42]} 38. Bxg5 {[%clk 0:00:51]}  Rg4+ {[%clk 0:00:42]} 39. Kf2 {[%clk 0:00:50]}  Rxg5 {[%clk 0:00:42]} 40. Rc7+ {[%clk 0:00:51]}  Kf6 {[%clk 0:00:40]} 41. Rxa7 {[%clk 0:00:52]}  Rb5 {[%clk 0:00:39]} 42. Ra4 {[%clk 0:00:49]}  Rb3 {[%clk 0:00:37]} 43. Rc4 {[%clk 0:00:48]}  Kg5 {[%clk 0:00:37]} 44. Kg2 {[%clk 0:00:48]}  Kh5 {[%clk 0:00:37]} 45. Ra4 {[%clk 0:00:48]}  g5 {[%clk 0:00:37]} 46. Rc4 {[%clk 0:00:48]}  g4 {[%clk 0:00:37]} 47. Rc8 {[%clk 0:00:44]}  Rb2+ {[%clk 0:00:36]} 48. Kg3 {[%clk 0:00:44]}  Rb3+ {[%clk 0:00:37]} 49. Kg2 {[%clk 0:00:45]}  Rb2+ {[%clk 0:00:35]} 50. Kg3 {[%clk 0:00:45]}  Rb3+ {[%clk 0:00:35]} 51. Kg2 {[%clk 0:00:45]} 1/2-1/2


[Site "https://www.chess.com"]

[Event "Titled Tuesday Blitz September 28 2021"]
[White "Wagner, Dinara"]
[Black "Rozman, Levy"]
[WhiteFideId "24157570"]
[BlackFideId "2039877"]
[WhiteElo "2260"]
[BlackElo "2376"]
[Result "1-0"]
[Round "05"]
[TimeControl "180+1"]
[Date "2021.09.28"]
[WhiteClock "0:00:29"]
[BlackClock "0:01:01"]

1. d4 {[%clk 0:00:51]}  g6 {[%clk 0:02:56]} 2. c4 {[%clk 0:00:51]}  Bg7 {[%clk 0:02:56]} 3. Nf3 {[%clk 0:00:51]}  d6 {[%clk 0:02:56]} 4. g3 {[%clk 0:00:52]}  Nc6 {[%clk 0:02:57]} 5. Bg2 {[%clk 0:00:53]}  Bd7 {[%clk 0:02:57]} 6. Nc3 {[%clk 0:00:53]}  Qc8 {[%clk 0:02:57]} 7. h3 {[%clk 0:00:53]}  e5 {[%clk 0:02:54]} 8. d5 {[%clk 0:00:53]}  Nce7 {[%clk 0:02:54]} 9. e4 {[%clk 0:00:53]}  h6 {[%clk 0:02:54]} 10. Be3 {[%clk 0:00:53]}  b6 {[%clk 0:02:53]} 11. b4 {[%clk 0:00:52]}  a5 {[%clk 0:02:52]} 12. a3 {[%clk 0:00:52]}  f5 {[%clk 0:02:51]} 13. c5 {[%clk 0:00:49]}  axb4 {[%clk 0:02:34]} 14. axb4 {[%clk 0:00:50]}  Rxa1 {[%clk 0:02:34]} 15. Qxa1 {[%clk 0:00:48]}  bxc5 {[%clk 0:02:33]} 16. bxc5 {[%clk 0:00:49]}  dxc5 {[%clk 0:02:29]} 17. Bxc5 {[%clk 0:00:48]}  Nf6 {[%clk 0:02:23]} 18. Bxe7 {[%clk 0:00:42]}  Kxe7 {[%clk 0:02:23]} 19. Nxe5 {[%clk 0:00:41]}  Nxe4 {[%clk 0:02:02]} 20. Nxe4 {[%clk 0:00:40]}  fxe4 {[%clk 0:01:59]} 21. Nxg6+ {[%clk 0:00:40]}  Kf7 {[%clk 0:01:58]} 22. Nxh8+ {[%clk 0:00:37]}  Qxh8 {[%clk 0:01:59]} 23. Qa2 {[%clk 0:00:37]}  Bc3+ {[%clk 0:01:58]} 24. Kf1 {[%clk 0:00:35]}  Qd4 {[%clk 0:01:56]} 25. Kg1 {[%clk 0:00:35]}  h5 {[%clk 0:01:52]} 26. Kh2 {[%clk 0:00:35]}  h4 {[%clk 0:01:35]} 27. Qe2 {[%clk 0:00:35]}  Bf5 {[%clk 0:01:21]} 28. Rd1 {[%clk 0:00:31]}  hxg3+ {[%clk 0:01:17]} 29. fxg3 {[%clk 0:00:30]}  Qe5 {[%clk 0:01:16]} 30. Rf1 {[%clk 0:00:31]}  Kg7 {[%clk 0:01:11]} 31. Qh5 {[%clk 0:00:30]}  Bg6 {[%clk 0:00:59]} 32. Qxe5+ {[%clk 0:00:30]}  Bxe5 {[%clk 0:01:00]} 33. Re1 {[%clk 0:00:30]}  Bc3 {[%clk 0:01:01]} 34. Re2 {[%clk 0:00:29]} 1-0


[Site "https://www.chess.com"]

[Event "Titled Tuesday Blitz September 28 2021"]
[White "Erdogdu, Mert"]
[Black "Navalgund, Niranjan"]
[WhiteFideId "6301495"]
[BlackFideId "5030854"]
[WhiteElo "2485"]
[BlackElo "2290"]
[Result "1-0"]
[Round "05"]
[TimeControl "180+1"]
[Date "2021.09.28"]
[WhiteClock "0:00:33"]
[BlackClock "0:00:07"]

1. e4 {[%clk 0:03:00]}  e5 {[%clk 0:02:59]} 2. Nf3 {[%clk 0:03:00]}  Nc6 {[%clk 0:02:53]} 3. Bc4 {[%clk 0:03:00]}  Nf6 {[%clk 0:02:53]} 4. d3 {[%clk 0:03:00]}  h6 {[%clk 0:02:52]} 5. O-O {[%clk 0:03:00]}  d6 {[%clk 0:02:51]} 6. c3 {[%clk 0:03:00]}  g5 {[%clk 0:02:49]} 7. a4 {[%clk 0:03:00]}  Bg4 {[%clk 0:02:43]} 8. Nbd2 {[%clk 0:02:55]}  Bg7 {[%clk 0:02:41]} 9. Re1 {[%clk 0:02:53]}  O-O {[%clk 0:02:36]} 10. Nf1 {[%clk 0:02:53]}  d5 {[%clk 0:02:27]} 11. exd5 {[%clk 0:02:49]}  Nxd5 {[%clk 0:02:27]} 12. h3 {[%clk 0:02:48]}  Bh5 {[%clk 0:02:25]} 13. Ng3 {[%clk 0:02:47]}  Bg6 {[%clk 0:02:23]} 14. a5 {[%clk 0:02:45]}  a6 {[%clk 0:01:45]} 15. Qb3 {[%clk 0:02:40]}  Nf4 {[%clk 0:01:41]} 16. Qxb7 {[%clk 0:02:29]}  Qd7 {[%clk 0:01:40]} 17. Qb3 {[%clk 0:02:24]}  Bxd3 {[%clk 0:01:12]} 18. Bxf4 {[%clk 0:02:21]}  Bxc4 {[%clk 0:01:11]} 19. Qxc4 {[%clk 0:02:19]}  exf4 {[%clk 0:01:11]} 20. Ne4 {[%clk 0:02:14]}  Na7 {[%clk 0:00:54]} 21. Nc5 {[%clk 0:01:51]}  Qc6 {[%clk 0:00:44]} 22. Ne5 {[%clk 0:01:43]}  Bxe5 {[%clk 0:00:39]} 23. Rxe5 {[%clk 0:01:44]}  Rfe8 {[%clk 0:00:39]} 24. Rae1 {[%clk 0:01:33]}  Rxe5 {[%clk 0:00:33]} 25. Rxe5 {[%clk 0:01:34]}  Qd6 {[%clk 0:00:33]} 26. Qe4 {[%clk 0:01:26]}  Rb8 {[%clk 0:00:25]} 27. b4 {[%clk 0:01:23]}  Nb5 {[%clk 0:00:24]} 28. Re8+ {[%clk 0:01:10]}  Rxe8 {[%clk 0:00:23]} 29. Qxe8+ {[%clk 0:01:11]}  Kg7 {[%clk 0:00:24]} 30. Ne4 {[%clk 0:01:04]}  Qd5 {[%clk 0:00:19]} 31. Qg8+ {[%clk 0:00:40]}  Kxg8 {[%clk 0:00:18]} 32. Nf6+ {[%clk 0:00:41]}  Kg7 {[%clk 0:00:18]} 33. Nxd5 {[%clk 0:00:41]}  c6 {[%clk 0:00:19]} 34. c4 {[%clk 0:00:41]}  Nd6 {[%clk 0:00:19]} 35. Nc7 {[%clk 0:00:40]}  Nxc4 {[%clk 0:00:16]} 36. Nxa6 {[%clk 0:00:40]}  Na3 {[%clk 0:00:12]} 37. Nb8 {[%clk 0:00:38]}  Nb5 {[%clk 0:00:07]} 38. Nxc6 {[%clk 0:00:37]}  Kf6 {[%clk 0:00:08]} 39. a6 {[%clk 0:00:37]}  Ke6 {[%clk 0:00:09]} 40. Nd4+ {[%clk 0:00:35]}  Nxd4 {[%clk 0:00:07]} 41. a7 {[%clk 0:00:35]}  f3 {[%clk 0:00:06]} 42. a8=Q {[%clk 0:00:34]}  Ne2+ {[%clk 0:00:07]} 43. Kf1 {[%clk 0:00:34]}  fxg2+ {[%clk 0:00:07]} 44. Qxg2 {[%clk 0:00:33]} 1-0


[Site "https://www.chess.com"]

[Event "Titled Tuesday Blitz September 28 2021"]
[White "Eynullayev, Atilla"]
[Black "Gritsenko, Nikolai"]
[WhiteFideId "13413570"]
[BlackFideId "14112493"]
[WhiteElo "1997"]
[BlackElo "2389"]
[Result "0-1"]
[Round "05"]
[TimeControl "180+1"]
[Date "2021.09.28"]
[WhiteClock "0:00:01"]
[BlackClock "0:00:12"]

1. Nf3 {[%clk 0:03:00]}  d5 {[%clk 0:02:04]} 2. g3 {[%clk 0:02:58]}  c6 {[%clk 0:02:04]} 3. Bg2 {[%clk 0:02:58]}  Nf6 {[%clk 0:02:03]} 4. O-O {[%clk 0:02:58]}  Bg4 {[%clk 0:02:02]} 5. d3 {[%clk 0:02:58]}  Nbd7 {[%clk 0:02:01]} 6. Nbd2 {[%clk 0:02:58]}  e6 {[%clk 0:02:01]} 7. b3 {[%clk 0:02:56]}  Bd6 {[%clk 0:01:59]} 8. Bb2 {[%clk 0:02:56]}  O-O {[%clk 0:01:59]} 9. h3 {[%clk 0:02:50]}  Bxf3 {[%clk 0:01:56]} 10. Bxf3 {[%clk 0:02:48]}  Be5 {[%clk 0:01:56]} 11. d4 {[%clk 0:02:43]}  Bd6 {[%clk 0:01:54]} 12. c4 {[%clk 0:02:43]}  Re8 {[%clk 0:01:52]} 13. Bg2 {[%clk 0:02:42]}  a5 {[%clk 0:01:51]} 14. Qc2 {[%clk 0:02:26]}  a4 {[%clk 0:01:43]} 15. Rad1 {[%clk 0:02:22]}  axb3 {[%clk 0:01:40]} 16. axb3 {[%clk 0:02:22]}  Ra2 {[%clk 0:01:30]} 17. Qb1 {[%clk 0:02:22]}  Qa5 {[%clk 0:01:27]} 18. e4 {[%clk 0:02:04]}  Bb4 {[%clk 0:01:23]} 19. e5 {[%clk 0:01:28]}  Bxd2 {[%clk 0:01:03]} 20. exf6 {[%clk 0:01:27]}  Bh6 {[%clk 0:01:02]} 21. fxg7 {[%clk 0:01:26]}  Bxg7 {[%clk 0:01:01]} 22. Rd3 {[%clk 0:01:14]}  Ra8 {[%clk 0:00:57]} 23. Bc3 {[%clk 0:01:06]}  Qa3 {[%clk 0:00:52]} 24. Qd1 {[%clk 0:01:04]}  Nf6 {[%clk 0:00:38]} 25. Re1 {[%clk 0:00:58]}  Qa6 {[%clk 0:00:36]} 26. Rde3 {[%clk 0:00:26]}  dxc4 {[%clk 0:00:33]} 27. bxc4 {[%clk 0:00:09]}  Qxc4 {[%clk 0:00:32]} 28. Bf1 {[%clk 0:00:10]}  Qd5 {[%clk 0:00:28]} 29. Bg2 {[%clk 0:00:10]}  Qd8 {[%clk 0:00:26]} 30. d5 {[%clk 0:00:08]}  Nxd5 {[%clk 0:00:23]} 31. Bxg7 {[%clk 0:00:08]}  Nxe3 {[%clk 0:00:21]} 32. Qxd8+ {[%clk 0:00:05]}  Rxd8 {[%clk 0:00:20]} 33. Bf6 {[%clk 0:00:05]}  Nxg2 {[%clk 0:00:20]} 34. Kxg2 {[%clk 0:00:03]}  Re8 {[%clk 0:00:19]} 35. g4 {[%clk 0:00:03]}  h6 {[%clk 0:00:19]} 36. h4 {[%clk 0:00:03]}  Kh7 {[%clk 0:00:19]} 37. g5 {[%clk 0:00:03]}  Kg6 {[%clk 0:00:19]} 38. Kg3 {[%clk 0:00:03]}  b5 {[%clk 0:00:17]} 39. f4 {[%clk 0:00:03]}  h5 {[%clk 0:00:17]} 40. Rc1 {[%clk 0:00:02]}  Rc8 {[%clk 0:00:16]} 41. Rc5 {[%clk 0:00:03]}  b4 {[%clk 0:00:15]} 42. f5+ {[%clk 0:00:03]}  exf5 {[%clk 0:00:15]} 43. Bd4 {[%clk 0:00:03]}  b3 {[%clk 0:00:13]} 44. Rc3 {[%clk 0:00:03]}  c5 {[%clk 0:00:12]} 45. Be5 {[%clk 0:00:03]}  c4 {[%clk 0:00:12]} 46. Bf4 {[%clk 0:00:01]}  b2 {[%clk 0:00:12]} 0-1


[Site "https://www.chess.com"]

[Event "Titled Tuesday Blitz September 28 2021"]
[White "Gallego Alcaraz, Andres Felipe"]
[Black "Garrido Outon, Alex"]
[WhiteFideId "4402669"]
[BlackFideId "24516279"]
[WhiteElo "2394"]
[BlackElo "2131"]
[Result "0-1"]
[Round "05"]
[TimeControl "180+1"]
[Date "2021.09.28"]
[WhiteClock "0:00:56"]
[BlackClock "0:00:21"]

1. Nf3 {[%clk 0:02:59]}  Nf6 {[%clk 0:02:56]} 2. g3 {[%clk 0:02:58]}  d6 {[%clk 0:02:55]} 3. Bg2 {[%clk 0:02:58]}  e5 {[%clk 0:02:55]} 4. d3 {[%clk 0:02:58]}  g6 {[%clk 0:02:52]} 5. O-O {[%clk 0:02:58]}  Bg7 {[%clk 0:02:52]} 6. c4 {[%clk 0:02:58]}  O-O {[%clk 0:02:53]} 7. Nc3 {[%clk 0:02:57]}  Nc6 {[%clk 0:02:48]} 8. Rb1 {[%clk 0:02:57]}  h6 {[%clk 0:02:43]} 9. b4 {[%clk 0:02:56]}  Be6 {[%clk 0:02:43]} 10. b5 {[%clk 0:02:53]}  Ne7 {[%clk 0:02:43]} 11. Nd2 {[%clk 0:02:53]}  Rb8 {[%clk 0:02:42]} 12. Qa4 {[%clk 0:02:43]}  Nd7 {[%clk 0:02:24]} 13. Qxa7 {[%clk 0:02:35]}  e4 {[%clk 0:02:23]} 14. Qa3 {[%clk 0:02:30]}  Ra8 {[%clk 0:02:11]} 15. Qb3 {[%clk 0:02:29]}  exd3 {[%clk 0:01:49]} 16. exd3 {[%clk 0:02:30]}  Nf5 {[%clk 0:01:47]} 17. Nf3 {[%clk 0:02:25]}  Nc5 {[%clk 0:01:40]} 18. Qc2 {[%clk 0:02:25]}  Re8 {[%clk 0:01:36]} 19. Bb2 {[%clk 0:02:18]}  Nd4 {[%clk 0:01:29]} 20. Nxd4 {[%clk 0:02:17]}  Bxd4 {[%clk 0:01:29]} 21. Ne2 {[%clk 0:01:58]}  Bxb2 {[%clk 0:01:22]} 22. Rxb2 {[%clk 0:01:59]}  Bf5 {[%clk 0:01:22]} 23. Nc1 {[%clk 0:01:56]}  Ra3 {[%clk 0:01:20]} 24. Rd1 {[%clk 0:01:51]}  Qf6 {[%clk 0:01:09]} 25. Nb3 {[%clk 0:01:46]}  Nxd3 {[%clk 0:01:00]} 26. Rbb1 {[%clk 0:01:32]}  Nf4 {[%clk 0:00:35]} 27. Qb2 {[%clk 0:01:24]}  Ne2+ {[%clk 0:00:33]} 28. Kf1 {[%clk 0:01:19]}  Qxb2 {[%clk 0:00:33]} 29. Rxb2 {[%clk 0:01:18]}  Nc3 {[%clk 0:00:33]} 30. Rdd2 {[%clk 0:01:11]}  Rxa2 {[%clk 0:00:27]} 31. Bxb7 {[%clk 0:01:06]}  Rxb2 {[%clk 0:00:22]} 32. Rxb2 {[%clk 0:01:06]}  d5 {[%clk 0:00:22]} 33. f3 {[%clk 0:01:00]}  dxc4 {[%clk 0:00:21]} 34. Nd4 {[%clk 0:00:56]}  Bd3+ {[%clk 0:00:21]} 35. Kf2 {[%clk 0:00:56]}  Nd1+ {[%clk 0:00:21]} 0-1


[Site "https://www.chess.com"]

[Event "Titled Tuesday Blitz September 28 2021"]
[White "Gasanov, Zaur"]
[Black "Indjic, Aleksandar"]
[WhiteFideId "34125970"]
[BlackFideId "911925"]
[WhiteElo "2099"]
[BlackElo "2643"]
[Result "1/2-1/2"]
[Round "05"]
[TimeControl "180+1"]
[Date "2021.09.28"]
[WhiteClock "0:00:05"]
[BlackClock "0:00:32"]

1. d4 {[%clk 0:02:47]}  d5 {[%clk 0:02:59]} 2. Nf3 {[%clk 0:02:47]}  Nf6 {[%clk 0:02:58]} 3. c4 {[%clk 0:02:48]}  c6 {[%clk 0:02:58]} 4. Nc3 {[%clk 0:02:47]}  dxc4 {[%clk 0:02:57]} 5. a4 {[%clk 0:02:46]}  e6 {[%clk 0:02:55]} 6. e3 {[%clk 0:02:46]}  c5 {[%clk 0:02:54]} 7. Bxc4 {[%clk 0:02:46]}  Nc6 {[%clk 0:02:53]} 8. O-O {[%clk 0:02:43]}  a6 {[%clk 0:02:51]} 9. dxc5 {[%clk 0:02:39]}  Qxd1 {[%clk 0:02:49]} 10. Rxd1 {[%clk 0:02:40]}  Bxc5 {[%clk 0:02:49]} 11. Bd2 {[%clk 0:02:39]}  Bb4 {[%clk 0:02:42]} 12. Rac1 {[%clk 0:02:39]}  Bd7 {[%clk 0:02:41]} 13. Be1 {[%clk 0:02:33]}  Rc8 {[%clk 0:02:40]} 14. Be2 {[%clk 0:02:32]}  Ke7 {[%clk 0:02:36]} 15. Nd4 {[%clk 0:02:27]}  Nxd4 {[%clk 0:01:49]} 16. Rxd4 {[%clk 0:02:27]}  Bc5 {[%clk 0:01:49]} 17. Rdd1 {[%clk 0:02:24]}  Bc6 {[%clk 0:01:49]} 18. Nb5 {[%clk 0:02:02]}  axb5 {[%clk 0:01:43]} 19. Rxc5 {[%clk 0:01:58]}  bxa4 {[%clk 0:01:43]} 20. Bb4 {[%clk 0:01:53]}  Ke8 {[%clk 0:01:42]} 21. Ba3 {[%clk 0:01:33]}  Rd8 {[%clk 0:01:41]} 22. Rdc1 {[%clk 0:01:21]}  Ne4 {[%clk 0:01:38]} 23. R5c2 {[%clk 0:01:09]}  f5 {[%clk 0:01:37]} 24. f3 {[%clk 0:01:02]}  Nf6 {[%clk 0:01:37]} 25. Kf2 {[%clk 0:00:36]}  Kf7 {[%clk 0:01:36]} 26. Rc5 {[%clk 0:00:36]}  Rd7 {[%clk 0:01:35]} 27. R1c2 {[%clk 0:00:33]}  Rhd8 {[%clk 0:01:33]} 28. h3 {[%clk 0:00:33]}  g5 {[%clk 0:01:31]} 29. g4 {[%clk 0:00:32]}  Kg6 {[%clk 0:01:26]} 30. Re5 {[%clk 0:00:26]}  Bd5 {[%clk 0:01:14]} 31. gxf5+ {[%clk 0:00:19]}  exf5 {[%clk 0:01:13]} 32. Bd3 {[%clk 0:00:20]}  Be4 {[%clk 0:01:05]} 33. fxe4 {[%clk 0:00:18]}  Rxd3 {[%clk 0:01:04]} 34. exf5+ {[%clk 0:00:19]}  Kf7 {[%clk 0:00:57]} 35. Rc7+ {[%clk 0:00:17]}  R8d7 {[%clk 0:00:56]} 36. Re7+ {[%clk 0:00:17]}  Kg8 {[%clk 0:00:56]} 37. Rexd7 {[%clk 0:00:16]}  Rxd7 {[%clk 0:00:52]} 38. Rc8+ {[%clk 0:00:15]}  Kf7 {[%clk 0:00:50]} 39. Rf8+ {[%clk 0:00:14]}  Kg7 {[%clk 0:00:49]} 40. Rb8 {[%clk 0:00:14]}  Ne4+ {[%clk 0:00:48]} 41. Kf3 {[%clk 0:00:14]}  Nd2+ {[%clk 0:00:48]} 42. Kg4 {[%clk 0:00:14]}  Nc4 {[%clk 0:00:48]} 43. Bf8+ {[%clk 0:00:14]}  Kf7 {[%clk 0:00:46]} 44. Kxg5 {[%clk 0:00:12]}  Nxe3 {[%clk 0:00:46]} 45. Bc5 {[%clk 0:00:11]}  h6+ {[%clk 0:00:45]} 46. Kf4 {[%clk 0:00:10]}  Nd5+ {[%clk 0:00:38]} 47. Ke5 {[%clk 0:00:10]}  Nc7 {[%clk 0:00:34]} 48. Rf8+ {[%clk 0:00:09]}  Kg7 {[%clk 0:00:34]} 49. f6+ {[%clk 0:00:09]}  Kg6 {[%clk 0:00:33]} 50. Rg8+ {[%clk 0:00:10]}  Kh7 {[%clk 0:00:34]} 51. Rc8 {[%clk 0:00:09]}  Rd5+ {[%clk 0:00:34]} 52. Ke4 {[%clk 0:00:07]}  Rd7 {[%clk 0:00:33]} 53. Ke5 {[%clk 0:00:06]}  Kg6 {[%clk 0:00:32]} 54. Rg8+ {[%clk 0:00:06]}  Kh7 {[%clk 0:00:32]} 55. Rc8 {[%clk 0:00:05]} 1/2-1/2


[Site "https://www.chess.com"]

[Event "Titled Tuesday Blitz September 28 2021"]
[White "Hansen, Eric"]
[Black "Rodriguez, Santiago"]
[WhiteFideId "2606771"]
[BlackFideId "3000591"]
[WhiteElo "2568"]
[BlackElo "2256"]
[Result "1-0"]
[Round "05"]
[TimeControl "180+1"]
[Date "2021.09.28"]
[WhiteClock "0:00:48"]
[BlackClock "0:01:18"]

1. Nf3 {[%clk 0:02:56]}  Nf6 {[%clk 0:02:59]} 2. g3 {[%clk 0:02:56]}  e6 {[%clk 0:02:59]} 3. Bg2 {[%clk 0:02:57]}  d5 {[%clk 0:03:00]} 4. O-O {[%clk 0:02:58]}  Be7 {[%clk 0:03:00]} 5. d3 {[%clk 0:02:59]}  O-O {[%clk 0:03:00]} 6. Nbd2 {[%clk 0:03:00]}  c5 {[%clk 0:03:01]} 7. e4 {[%clk 0:03:00]}  Nc6 {[%clk 0:03:01]} 8. e5 {[%clk 0:03:01]}  Nd7 {[%clk 0:03:01]} 9. Re1 {[%clk 0:03:02]}  b5 {[%clk 0:03:01]} 10. Nf1 {[%clk 0:03:02]}  Qc7 {[%clk 0:03:01]} 11. Bf4 {[%clk 0:03:02]}  Bb7 {[%clk 0:02:58]} 12. h4 {[%clk 0:03:03]}  Rfc8 {[%clk 0:02:56]} 13. c3 {[%clk 0:03:00]}  a5 {[%clk 0:02:50]} 14. Ne3 {[%clk 0:03:01]}  Qd8 {[%clk 0:02:49]} 15. Ng4 {[%clk 0:02:56]}  Bf8 {[%clk 0:02:44]} 16. h5 {[%clk 0:02:56]}  h6 {[%clk 0:02:44]} 17. Qd2 {[%clk 0:02:56]}  Ne7 {[%clk 0:02:39]} 18. Nh4 {[%clk 0:02:50]}  b4 {[%clk 0:02:29]} 19. Rac1 {[%clk 0:02:40]}  bxc3 {[%clk 0:02:12]} 20. bxc3 {[%clk 0:02:40]}  Ba6 {[%clk 0:02:08]} 21. c4 {[%clk 0:02:29]}  Rab8 {[%clk 0:02:07]} 22. cxd5 {[%clk 0:02:07]}  Nxd5 {[%clk 0:02:08]} 23. Bxd5 {[%clk 0:02:04]}  exd5 {[%clk 0:02:08]} 24. e6 {[%clk 0:01:54]}  fxe6 {[%clk 0:01:56]} 25. Bxb8 {[%clk 0:01:53]}  Nxb8 {[%clk 0:01:51]} 26. Rxe6 {[%clk 0:01:50]}  Rc6 {[%clk 0:01:50]} 27. Rce1 {[%clk 0:01:42]}  Rxe6 {[%clk 0:01:41]} 28. Rxe6 {[%clk 0:01:42]}  Bc8 {[%clk 0:01:42]} 29. Qe2 {[%clk 0:01:25]}  Bxe6 {[%clk 0:01:38]} 30. Qxe6+ {[%clk 0:01:25]}  Kh7 {[%clk 0:01:38]} 31. Ne5 {[%clk 0:00:51]}  Qd6 {[%clk 0:01:21]} 32. Qf5+ {[%clk 0:00:47]}  Kg8 {[%clk 0:01:20]} 33. Qf7+ {[%clk 0:00:47]}  Kh7 {[%clk 0:01:18]} 34. Nhg6 {[%clk 0:00:48]} 1-0


[Site "https://www.chess.com"]

[Event "Titled Tuesday Blitz September 28 2021"]
[White "Holt, Conrad"]
[Black "Tang, Andrew"]
[WhiteFideId "2034387"]
[BlackFideId "2059630"]
[WhiteElo "2871"]
[BlackElo "2970"]
[Result "0-1"]
[Round "05"]
[TimeControl "180+1"]
[Date "2021.09.28"]
[WhiteClock "0:00:01"]
[BlackClock "0:00:07"]

1. d4 {[%clk 0:02:53]}  d5 {[%clk 0:03:00]} 2. c4 {[%clk 0:02:52]}  e6 {[%clk 0:03:00]} 3. Nc3 {[%clk 0:02:53]}  Be7 {[%clk 0:02:57]} 4. cxd5 {[%clk 0:02:51]}  exd5 {[%clk 0:02:58]} 5. Bf4 {[%clk 0:02:51]}  c6 {[%clk 0:02:59]} 6. e3 {[%clk 0:02:51]}  Bf5 {[%clk 0:03:00]} 7. Nge2 {[%clk 0:02:49]}  Nd7 {[%clk 0:03:00]} 8. Ng3 {[%clk 0:02:49]}  Bg6 {[%clk 0:03:00]} 9. h4 {[%clk 0:02:48]}  Bxh4 {[%clk 0:03:01]} 10. Qb3 {[%clk 0:02:48]}  Bxg3 {[%clk 0:02:53]} 11. Bxg3 {[%clk 0:02:48]}  Qb6 {[%clk 0:02:54]} 12. Qa3 {[%clk 0:02:47]}  Ne7 {[%clk 0:02:53]} 13. Be2 {[%clk 0:02:39]}  Nf5 {[%clk 0:02:47]} 14. Bf4 {[%clk 0:02:33]}  Qd8 {[%clk 0:02:40]} 15. g4 {[%clk 0:02:28]}  Ne7 {[%clk 0:02:34]} 16. Rd1 {[%clk 0:02:14]}  O-O {[%clk 0:02:24]} 17. Bg5 {[%clk 0:01:59]}  Re8 {[%clk 0:02:14]} 18. e4 {[%clk 0:01:59]}  f6 {[%clk 0:01:37]} 19. Bf4 {[%clk 0:01:46]}  dxe4 {[%clk 0:01:31]} 20. Qb3+ {[%clk 0:01:38]}  Kh8 {[%clk 0:01:26]} 21. Qxb7 {[%clk 0:01:16]}  Nb6 {[%clk 0:01:25]} 22. g5 {[%clk 0:01:10]}  fxg5 {[%clk 0:00:58]} 23. Be5 {[%clk 0:01:05]}  Qd7 {[%clk 0:00:54]} 24. Qa6 {[%clk 0:01:02]}  Ned5 {[%clk 0:00:52]} 25. Nxd5 {[%clk 0:00:55]}  Nxd5 {[%clk 0:00:52]} 26. Qa3 {[%clk 0:00:48]}  Nf4 {[%clk 0:00:51]} 27. Qg3 {[%clk 0:00:36]}  Qf5 {[%clk 0:00:34]} 28. Bg4 {[%clk 0:00:34]}  Qf7 {[%clk 0:00:34]} 29. Kf1 {[%clk 0:00:26]}  Nd3 {[%clk 0:00:18]} 30. Kg1 {[%clk 0:00:21]}  Nxe5 {[%clk 0:00:15]} 31. dxe5 {[%clk 0:00:22]}  Qf4 {[%clk 0:00:14]} 32. e6 {[%clk 0:00:16]}  Qf6 {[%clk 0:00:09]} 33. Rd6 {[%clk 0:00:14]}  c5 {[%clk 0:00:08]} 34. e7 {[%clk 0:00:14]}  Qf7 {[%clk 0:00:08]} 35. Rxg6 {[%clk 0:00:03]}  Qxg6 {[%clk 0:00:07]} 36. Bh5 {[%clk 0:00:02]}  Qf6 {[%clk 0:00:08]} 37. Bxe8 {[%clk 0:00:02]}  Rxe8 {[%clk 0:00:09]} 38. Qh3 {[%clk 0:00:03]}  h6 {[%clk 0:00:09]} 39. Qd7 {[%clk 0:00:02]}  Rxe7 {[%clk 0:00:09]} 40. Qd8+ {[%clk 0:00:02]}  Kh7 {[%clk 0:00:10]} 41. Qd2 {[%clk 0:00:02]}  Qd4 {[%clk 0:00:09]} 42. Qc2 {[%clk 0:00:02]}  Rf7 {[%clk 0:00:09]} 43. Rh3 {[%clk 0:00:02]}  Rf4 {[%clk 0:00:07]} 44. Re3 {[%clk 0:00:02]}  c4 {[%clk 0:00:07]} 45. Kf1 {[%clk 0:00:02]}  h5 {[%clk 0:00:07]} 46. Ke1 {[%clk 0:00:02]}  Kh6 {[%clk 0:00:08]} 47. Qe2 {[%clk 0:00:03]}  g6 {[%clk 0:00:07]} 48. Rc3 {[%clk 0:00:03]}  Rh4 {[%clk 0:00:08]} 49. Kf1 {[%clk 0:00:02]}  e3 {[%clk 0:00:06]} 50. Rxe3 {[%clk 0:00:02]}  Qd5 {[%clk 0:00:05]} 51. Qf3 {[%clk 0:00:01]}  Qxf3 {[%clk 0:00:05]} 52. Rxf3 {[%clk 0:00:02]}  Rf4 {[%clk 0:00:05]} 53. Ra3 {[%clk 0:00:02]}  Rf7 {[%clk 0:00:06]} 54. Rc3 {[%clk 0:00:01]}  Rb7 {[%clk 0:00:06]} 55. Rc2 {[%clk 0:00:01]}  g4 {[%clk 0:00:06]} 56. Rxc4 {[%clk 0:00:01]}  Rxb2 {[%clk 0:00:06]} 57. Ra4 {[%clk 0:00:02]}  Rb7 {[%clk 0:00:06]} 58. Kg2 {[%clk 0:00:02]}  Rf7 {[%clk 0:00:07]} 59. Kg3 {[%clk 0:00:02]}  Rf3+ {[%clk 0:00:06]} 60. Kg2 {[%clk 0:00:03]}  Rf7 {[%clk 0:00:07]} 61. Ra5 {[%clk 0:00:03]}  h4 {[%clk 0:00:07]} 62. Ra4 {[%clk 0:00:03]}  Kh5 {[%clk 0:00:08]} 63. Ra5+ {[%clk 0:00:03]}  g5 {[%clk 0:00:08]} 64. Ra4 {[%clk 0:00:03]}  h3+ {[%clk 0:00:09]} 65. Kg1 {[%clk 0:00:03]}  Kh4 {[%clk 0:00:08]} 66. Ra6 {[%clk 0:00:03]}  g3 {[%clk 0:00:07]} 67. Rh6+ {[%clk 0:00:01]}  Kg4 {[%clk 0:00:07]} 68. fxg3 {[%clk 0:00:01]}  Kxg3 {[%clk 0:00:07]} 0-1


[Site "https://www.chess.com"]